[Event "Titled Tuesday Blitz December 20 Late 2022"]
[White "Dudzinski, Pawel"]
[Black "Smith, Garrett L"]
[WhiteFideId "1117890"]
[BlackFideId "2024829"]
[WhiteElo "2099"]
[BlackElo "2244"]
[Result "1-0"]
[Round "10"]
[TimeControl "180+1"]
[Date "2022.12.21"]
[WhiteClock "0:01:15"]
[BlackClock "0:01:02"]

1. e4 {[%clk 0:03:00]}  c5 {[%clk 0:02:59]} 2. Nc3 {[%clk 0:02:58]}  Nc6 {[%clk 0:02:59]} 3. g3 {[%clk 0:02:59]}  Rb8 {[%clk 0:02:59]} 4. Bg2 {[%clk 0:03:00]}  b5 {[%clk 0:02:59]} 5. d3 {[%clk 0:03:00]}  g6 {[%clk 0:02:58]} 6. f4 {[%clk 0:03:00]}  Bg7 {[%clk 0:02:58]} 7. Nf3 {[%clk 0:03:01]}  b4 {[%clk 0:02:58]} 8. Ne2 {[%clk 0:03:01]}  e6 {[%clk 0:02:55]} 9. d4 {[%clk 0:03:01]}  Nxd4 {[%clk 0:02:49]} 10. Nexd4 {[%clk 0:03:02]}  cxd4 {[%clk 0:02:50]} 11. Nxd4 {[%clk 0:03:01]}  Ba6 {[%clk 0:02:36]} 12. e5 {[%clk 0:03:01]}  Ne7 {[%clk 0:02:30]} 13. Be3 {[%clk 0:03:01]}  O-O {[%clk 0:02:26]} 14. Qd2 {[%clk 0:02:57]}  Qa5 {[%clk 0:02:11]} 15. Nb3 {[%clk 0:02:52]}  Qb5 {[%clk 0:01:53]} 16. Bxa7 {[%clk 0:02:42]}  Rbc8 {[%clk 0:01:51]} 17. Nd4 {[%clk 0:02:24]}  Qa4 {[%clk 0:01:44]} 18. b3 {[%clk 0:02:12]}  Qa3 {[%clk 0:01:41]} 19. Kf2 {[%clk 0:02:04]}  Nc6 {[%clk 0:01:27]} 20. Nxc6 {[%clk 0:02:02]}  dxc6 {[%clk 0:01:27]} 21. Bc5 {[%clk 0:02:00]}  Rfd8 {[%clk 0:01:26]} 22. Bd6 {[%clk 0:01:17]}  Bf8 {[%clk 0:01:18]} 23. Rhd1 {[%clk 0:01:17]}  c5 {[%clk 0:01:10]} 24. c4 {[%clk 0:01:16]}  bxc3 {[%clk 0:01:06]} 25. Qxc3 {[%clk 0:01:16]}  c4 {[%clk 0:01:02]} 26. Bxa3 {[%clk 0:01:15]} 1-0


[Site "https://www.chess.com"]

[Event "Titled Tuesday Blitz December 20 Late 2022"]
[White "Eljanov, Pavel"]
[Black "Tatarinov, Dmitry"]
[WhiteFideId "14102951"]
[BlackFideId "24160067"]
[WhiteElo "2598"]
[BlackElo "2326"]
[Result "1-0"]
[Round "10"]
[TimeControl "180+1"]
[Date "2022.12.20"]
[WhiteClock "0:00:51"]
[BlackClock "0:00:41"]

1. e4 {[%clk 0:03:00]}  c6 {[%clk 0:02:59]} 2. Nf3 {[%clk 0:02:58]}  d5 {[%clk 0:02:59]} 3. d3 {[%clk 0:02:58]}  dxe4 {[%clk 0:03:00]} 4. dxe4 {[%clk 0:02:59]}  Qxd1+ {[%clk 0:03:01]} 5. Kxd1 {[%clk 0:03:00]}  g6 {[%clk 0:03:02]} 6. Nfd2 {[%clk 0:02:52]}  Bg7 {[%clk 0:03:01]} 7. a4 {[%clk 0:02:51]}  f5 {[%clk 0:03:01]} 8. f3 {[%clk 0:02:45]}  Nf6 {[%clk 0:02:57]} 9. Bd3 {[%clk 0:02:37]}  Nbd7 {[%clk 0:02:50]} 10. exf5 {[%clk 0:02:35]}  Nc5 {[%clk 0:02:46]} 11. fxg6 {[%clk 0:02:35]}  Nxd3 {[%clk 0:02:45]} 12. cxd3 {[%clk 0:02:36]}  hxg6 {[%clk 0:02:45]} 13. Nc3 {[%clk 0:02:35]}  g5 {[%clk 0:02:43]} 14. Nde4 {[%clk 0:02:29]}  g4 {[%clk 0:02:42]} 15. Nxf6+ {[%clk 0:02:28]}  exf6 {[%clk 0:02:38]} 16. fxg4 {[%clk 0:02:24]}  Bxg4+ {[%clk 0:02:37]} 17. Kc2 {[%clk 0:02:24]}  Be6 {[%clk 0:02:30]} 18. Bf4 {[%clk 0:02:21]}  O-O-O {[%clk 0:02:28]} 19. Rae1 {[%clk 0:02:10]}  Bf5 {[%clk 0:02:21]} 20. Ne4 {[%clk 0:02:11]}  Bf8 {[%clk 0:02:12]} 21. Rhf1 {[%clk 0:02:02]}  Bb4 {[%clk 0:02:12]} 22. Re3 {[%clk 0:02:01]}  Rhe8 {[%clk 0:02:00]} 23. h3 {[%clk 0:01:47]}  Bg6 {[%clk 0:02:00]} 24. Rff3 {[%clk 0:01:38]}  b6 {[%clk 0:01:52]} 25. Nxf6 {[%clk 0:01:28]}  Rf8 {[%clk 0:01:31]} 26. Ne4 {[%clk 0:01:28]}  Kb7 {[%clk 0:01:30]} 27. g4 {[%clk 0:01:25]}  Ka6 {[%clk 0:01:30]} 28. h4 {[%clk 0:01:24]}  c5 {[%clk 0:01:28]} 29. h5 {[%clk 0:01:20]}  Bh7 {[%clk 0:01:28]} 30. b3 {[%clk 0:01:12]}  Rd5 {[%clk 0:01:17]} 31. Bg3 {[%clk 0:00:55]}  Rfd8 {[%clk 0:01:12]} 32. Nf6 {[%clk 0:00:53]}  c4 {[%clk 0:00:50]} 33. bxc4 {[%clk 0:00:52]}  Rxd3 {[%clk 0:00:42]} 34. Rxd3 {[%clk 0:00:51]}  Bxd3+ {[%clk 0:00:41]} 35. Rxd3 {[%clk 0:00:51]} 1-0


[Site "https://www.chess.com"]

[Event "Titled Tuesday Blitz December 20 Late 2022"]
[White "Fernandez De La Vara, Arnaldo"]
[Black "Zhukov, Maksim"]
[WhiteFideId "3518388"]
[BlackFideId "34181790"]
[WhiteElo "2387"]
[BlackElo "1929"]
[Result "1-0"]
[Round "10"]
[TimeControl "180+1"]
[Date "2022.12.21"]
[WhiteClock "0:02:26"]
[BlackClock "0:02:12"]

1. Nf3 {[%clk 0:02:59]}  Nf6 {[%clk 0:02:59]} 2. g3 {[%clk 0:03:00]}  g6 {[%clk 0:02:59]} 3. b3 {[%clk 0:03:01]}  Bg7 {[%clk 0:03:00]} 4. Bb2 {[%clk 0:03:02]}  O-O {[%clk 0:03:01]} 5. Bg2 {[%clk 0:03:02]}  d6 {[%clk 0:03:01]} 6. d4 {[%clk 0:03:02]}  Nbd7 {[%clk 0:03:01]} 7. c4 {[%clk 0:03:02]}  e5 {[%clk 0:03:02]} 8. dxe5 {[%clk 0:03:02]}  Ng4 {[%clk 0:03:02]} 9. O-O {[%clk 0:03:02]}  Ngxe5 {[%clk 0:03:02]} 10. Qd2 {[%clk 0:03:03]}  Nxf3+ {[%clk 0:03:02]} 11. Bxf3 {[%clk 0:03:04]}  Ne5 {[%clk 0:03:02]} 12. Bg2 {[%clk 0:03:03]}  c6 {[%clk 0:02:59]} 13. Nc3 {[%clk 0:03:03]}  Qc7 {[%clk 0:03:00]} 14. Ne4 {[%clk 0:02:52]}  Rd8 {[%clk 0:02:59]} 15. Rad1 {[%clk 0:02:50]}  Bf5 {[%clk 0:02:58]} 16. Nxd6 {[%clk 0:02:48]}  Nd3 {[%clk 0:02:46]} 17. Bxg7 {[%clk 0:02:40]}  Rxd6 {[%clk 0:02:13]} 18. Ba1 {[%clk 0:02:39]}  Rad8 {[%clk 0:02:12]} 19. Qc3 {[%clk 0:02:26]} 1-0


[Site "https://www.chess.com"]

[Event "Titled Tuesday Blitz December 20 Late 2022"]
[White "Figorito, Nick"]
[Black "gshwbedhkhd"]
[WhiteFideId "30923689"]
[WhiteElo "2422"]
[BlackElo "2573"]
[Result "0-1"]
[Round "10"]
[TimeControl "180+1"]
[Date "2022.12.21"]
[WhiteClock "0:00:15"]
[BlackClock "0:00:37"]

1. Nf3 {[%clk 0:03:00]}  f5 {[%clk 0:02:59]} 2. e4 {[%clk 0:03:00]}  fxe4 {[%clk 0:02:58]} 3. Ng5 {[%clk 0:03:01]}  Nf6 {[%clk 0:02:58]} 4. d3 {[%clk 0:03:01]}  e3 {[%clk 0:02:58]} 5. fxe3 {[%clk 0:02:59]}  e5 {[%clk 0:02:57]} 6. Be2 {[%clk 0:02:53]}  Bc5 {[%clk 0:02:53]} 7. O-O {[%clk 0:02:45]}  Nc6 {[%clk 0:02:52]} 8. c3 {[%clk 0:02:41]}  O-O {[%clk 0:02:52]} 9. d4 {[%clk 0:02:41]}  Bb6 {[%clk 0:02:51]} 10. b4 {[%clk 0:02:17]}  d5 {[%clk 0:02:48]} 11. b5 {[%clk 0:02:15]}  Ne7 {[%clk 0:02:41]} 12. dxe5 {[%clk 0:02:12]}  Ne4 {[%clk 0:02:41]} 13. Nxe4 {[%clk 0:01:57]}  dxe4 {[%clk 0:02:40]} 14. Rxf8+ {[%clk 0:01:36]}  Qxf8 {[%clk 0:02:38]} 15. Ba3 {[%clk 0:01:33]}  Bxe3+ {[%clk 0:02:35]} 16. Kh1 {[%clk 0:01:28]}  Be6 {[%clk 0:02:36]} 17. Qe1 {[%clk 0:01:15]}  Rd8 {[%clk 0:02:33]} 18. c4 {[%clk 0:01:02]}  Bf2 {[%clk 0:02:20]} 19. Qc1 {[%clk 0:00:53]}  Bd4 {[%clk 0:02:02]} 20. Nc3 {[%clk 0:00:52]}  Bxe5 {[%clk 0:02:02]} 21. Rb1 {[%clk 0:00:48]}  Qe8 {[%clk 0:01:30]} 22. Bxe7 {[%clk 0:00:44]}  Qxe7 {[%clk 0:01:30]} 23. Nd5 {[%clk 0:00:43]}  Qh4 {[%clk 0:01:26]} 24. Qg1 {[%clk 0:00:32]}  c6 {[%clk 0:01:17]} 25. bxc6 {[%clk 0:00:32]}  bxc6 {[%clk 0:01:18]} 26. Nb4 {[%clk 0:00:29]}  Rb8 {[%clk 0:01:05]} 27. g3 {[%clk 0:00:29]}  Bxg3 {[%clk 0:00:57]} 28. Qxg3 {[%clk 0:00:27]}  Qxg3 {[%clk 0:00:57]} 29. hxg3 {[%clk 0:00:28]}  a5 {[%clk 0:00:57]} 30. a3 {[%clk 0:00:20]}  c5 {[%clk 0:00:56]} 31. Kg2 {[%clk 0:00:19]}  axb4 {[%clk 0:00:55]} 32. axb4 {[%clk 0:00:20]}  Rxb4 {[%clk 0:00:54]} 33. Rc1 {[%clk 0:00:15]}  Kf7 {[%clk 0:00:51]} 34. Kf2 {[%clk 0:00:15]}  Kf6 {[%clk 0:00:51]} 35. Ke3 {[%clk 0:00:16]}  Ke5 {[%clk 0:00:51]} 36. Rc2 {[%clk 0:00:15]}  Rb3+ {[%clk 0:00:51]} 37. Kf2 {[%clk 0:00:15]}  Kd4 {[%clk 0:00:52]} 38. Rd2+ {[%clk 0:00:15]}  Ke5 {[%clk 0:00:51]} 39. Rc2 {[%clk 0:00:15]}  g6 {[%clk 0:00:45]} 40. Rc1 {[%clk 0:00:14]}  h5 {[%clk 0:00:45]} 41. Rc2 {[%clk 0:00:15]}  e3+ {[%clk 0:00:41]} 42. Kg2 {[%clk 0:00:14]}  Bf5 {[%clk 0:00:41]} 43. Rc1 {[%clk 0:00:14]}  Rb2 {[%clk 0:00:40]} 44. Kf1 {[%clk 0:00:12]}  Bh3+ {[%clk 0:00:38]} 45. Ke1 {[%clk 0:00:13]}  Ke4 {[%clk 0:00:37]} 46. Rd1 {[%clk 0:00:12]}  Rxe2+ {[%clk 0:00:37]} 47. Kxe2 {[%clk 0:00:12]}  Bg4+ {[%clk 0:00:38]} 48. Ke1 {[%clk 0:00:13]}  Bxd1 {[%clk 0:00:39]} 49. Kxd1 {[%clk 0:00:14]}  Kd3 {[%clk 0:00:39]} 50. Ke1 {[%clk 0:00:14]}  e2 {[%clk 0:00:38]} 51. g4 {[%clk 0:00:14]}  hxg4 {[%clk 0:00:39]} 52. Kf2 {[%clk 0:00:14]}  Kd2 {[%clk 0:00:39]} 53. Kg2 {[%clk 0:00:14]}  g3 {[%clk 0:00:39]} 54. Kf3 {[%clk 0:00:14]}  e1=Q {[%clk 0:00:39]} 55. Kg4 {[%clk 0:00:15]}  Qe5 {[%clk 0:00:37]} 56. Kf3 {[%clk 0:00:15]}  Qf5+ {[%clk 0:00:38]} 57. Kg2 {[%clk 0:00:16]}  g5 {[%clk 0:00:36]} 58. Kg1 {[%clk 0:00:15]}  Qf2+ {[%clk 0:00:36]} 59. Kh1 {[%clk 0:00:15]}  Qh2# {[%clk 0:00:37]} 0-1


[Site "https://www.chess.com"]

[Event "Titled Tuesday Blitz December 20 Late 2022"]
[White "Fiorito, Francisco"]
[Black "Mekhitarian, Krikor Sevag"]
[WhiteFideId "180165"]
[BlackFideId "2107660"]
[WhiteElo "2348"]
[BlackElo "2604"]
[Result "0-1"]
[Round "10"]
[TimeControl "180+1"]
[Date "2022.12.20"]
[WhiteClock "0:00:02"]
[BlackClock "0:00:34"]

1. Nf3 {[%clk 0:03:00]}  b6 {[%clk 0:02:58]} 2. g3 {[%clk 0:03:01]}  Bb7 {[%clk 0:02:59]} 3. Bg2 {[%clk 0:03:02]}  g6 {[%clk 0:03:00]} 4. O-O {[%clk 0:03:02]}  Bg7 {[%clk 0:03:00]} 5. c4 {[%clk 0:03:02]}  e5 {[%clk 0:03:00]} 6. Nc3 {[%clk 0:02:59]}  f5 {[%clk 0:02:58]} 7. e4 {[%clk 0:02:50]}  Ne7 {[%clk 0:02:55]} 8. exf5 {[%clk 0:02:49]}  Nxf5 {[%clk 0:02:52]} 9. Nxe5 {[%clk 0:02:25]}  Bxg2 {[%clk 0:02:51]} 10. Re1 {[%clk 0:02:25]}  O-O {[%clk 0:02:39]} 11. Kxg2 {[%clk 0:02:25]}  Qf6 {[%clk 0:02:33]} 12. f4 {[%clk 0:00:50]}  d6 {[%clk 0:02:06]} 13. Nd5 {[%clk 0:00:45]}  Qd8 {[%clk 0:02:02]} 14. Nf3 {[%clk 0:00:42]}  Nd7 {[%clk 0:01:51]} 15. d4 {[%clk 0:00:40]}  c6 {[%clk 0:01:52]} 16. Nc3 {[%clk 0:00:40]}  Nf6 {[%clk 0:01:50]} 17. Qd3 {[%clk 0:00:37]}  Qd7 {[%clk 0:01:50]} 18. Bd2 {[%clk 0:00:37]}  a6 {[%clk 0:01:47]} 19. Re2 {[%clk 0:00:36]}  b5 {[%clk 0:01:48]} 20. Rae1 {[%clk 0:00:35]}  bxc4 {[%clk 0:01:44]} 21. Qxc4+ {[%clk 0:00:35]}  d5 {[%clk 0:01:45]} 22. Qd3 {[%clk 0:00:35]}  Nd6 {[%clk 0:01:43]} 23. Re7 {[%clk 0:00:31]}  Qc8 {[%clk 0:01:41]} 24. Ng5 {[%clk 0:00:30]}  Nf5 {[%clk 0:01:39]} 25. R7e2 {[%clk 0:00:20]}  Re8 {[%clk 0:01:17]} 26. Na4 {[%clk 0:00:17]}  Rxe2+ {[%clk 0:01:15]} 27. Rxe2 {[%clk 0:00:18]}  Rb8 {[%clk 0:01:13]} 28. Bc3 {[%clk 0:00:14]}  h6 {[%clk 0:01:11]} 29. Ne6 {[%clk 0:00:14]}  Ne4 {[%clk 0:01:11]} 30. Nxg7 {[%clk 0:00:14]}  Kxg7 {[%clk 0:01:12]} 31. Nc5 {[%clk 0:00:14]}  Nfd6 {[%clk 0:01:06]} 32. Nxe4 {[%clk 0:00:13]}  Nxe4 {[%clk 0:01:05]} 33. Rxe4 {[%clk 0:00:14]}  dxe4 {[%clk 0:01:06]} 34. d5+ {[%clk 0:00:14]}  Kh7 {[%clk 0:01:00]} 35. Qxe4 {[%clk 0:00:15]}  Qe8 {[%clk 0:00:56]} 36. Qxe8 {[%clk 0:00:11]}  Rxe8 {[%clk 0:00:56]} 37. dxc6 {[%clk 0:00:10]}  Rc8 {[%clk 0:00:56]} 38. Kf3 {[%clk 0:00:10]}  Rxc6 {[%clk 0:00:56]} 39. Ke4 {[%clk 0:00:11]}  Kg8 {[%clk 0:00:55]} 40. Kd5 {[%clk 0:00:10]}  Rb6 {[%clk 0:00:55]} 41. b4 {[%clk 0:00:09]}  Kf7 {[%clk 0:00:53]} 42. a4 {[%clk 0:00:09]}  Rb8 {[%clk 0:00:54]} 43. Kc6 {[%clk 0:00:03]}  Rc8+ {[%clk 0:00:54]} 44. Kb6 {[%clk 0:00:03]}  Rxc3 {[%clk 0:00:54]} 45. Kxa6 {[%clk 0:00:04]}  Ke7 {[%clk 0:00:42]} 46. b5 {[%clk 0:00:04]}  Kd8 {[%clk 0:00:39]} 47. Kb6 {[%clk 0:00:03]}  Kc8 {[%clk 0:00:38]} 48. a5 {[%clk 0:00:04]}  Kb8 {[%clk 0:00:38]} 49. a6 {[%clk 0:00:04]}  h5 {[%clk 0:00:36]} 50. Ka5 {[%clk 0:00:03]}  Ra3+ {[%clk 0:00:33]} 51. Kb4 {[%clk 0:00:01]}  Ra2 {[%clk 0:00:34]} 52. b6 {[%clk 0:00:01]}  Rxa6 {[%clk 0:00:34]} 53. Kb5 {[%clk 0:00:02]}  Ra2 {[%clk 0:00:34]} 0-1


[Site "https://www.chess.com"]

[Event "Titled Tuesday Blitz December 20 Late 2022"]
[White "Fiorito, Joaquin"]
[Black "Kleiman, Jake"]
[WhiteFideId "180173"]
[BlackFideId "2020041"]
[WhiteElo "2157"]
[BlackElo "2653"]
[Result "0-1"]
[Round "10"]
[TimeControl "180+1"]
[Date "2022.12.21"]
[WhiteClock "0:01:26"]
[BlackClock "0:00:52"]

1. d4 {[%clk 0:03:00]}  Nf6 {[%clk 0:03:00]} 2. Nc3 {[%clk 0:02:59]}  d5 {[%clk 0:03:00]} 3. Bf4 {[%clk 0:02:59]}  e6 {[%clk 0:02:58]} 4. Nb5 {[%clk 0:02:59]}  Bd6 {[%clk 0:02:59]} 5. Nxd6+ {[%clk 0:02:59]}  cxd6 {[%clk 0:03:00]} 6. Nf3 {[%clk 0:03:00]}  O-O {[%clk 0:03:00]} 7. e3 {[%clk 0:03:01]}  Nc6 {[%clk 0:03:01]} 8. Be2 {[%clk 0:03:01]}  Re8 {[%clk 0:03:01]} 9. O-O {[%clk 0:03:02]}  h6 {[%clk 0:03:02]} 10. c4 {[%clk 0:03:00]}  e5 {[%clk 0:02:58]} 11. Bg3 {[%clk 0:03:00]}  Bg4 {[%clk 0:02:50]} 12. cxd5 {[%clk 0:02:42]}  Nxd5 {[%clk 0:02:49]} 13. Nxe5 {[%clk 0:01:58]}  dxe5 {[%clk 0:02:11]} 14. Bxg4 {[%clk 0:01:57]}  exd4 {[%clk 0:02:11]} 15. exd4 {[%clk 0:01:58]}  Nf6 {[%clk 0:02:09]} 16. Bf3 {[%clk 0:01:58]}  Nxd4 {[%clk 0:01:50]} 17. Bxb7 {[%clk 0:01:58]}  Ne2+ {[%clk 0:01:50]} 18. Kh1 {[%clk 0:01:58]}  Nxg3+ {[%clk 0:01:50]} 19. hxg3 {[%clk 0:01:56]}  Rb8 {[%clk 0:01:50]} 20. Bf3 {[%clk 0:01:49]}  Rxb2 {[%clk 0:01:46]} 21. Qa4 {[%clk 0:01:48]}  Qb6 {[%clk 0:01:39]} 22. Kg1 {[%clk 0:01:46]}  Re5 {[%clk 0:01:32]} 23. Qc4 {[%clk 0:01:43]}  g6 {[%clk 0:01:24]} 24. a4 {[%clk 0:01:42]}  a5 {[%clk 0:01:23]} 25. Rad1 {[%clk 0:01:40]}  Kg7 {[%clk 0:01:21]} 26. Qc8 {[%clk 0:01:33]}  Re8 {[%clk 0:01:15]} 27. Qc3 {[%clk 0:01:32]}  h5 {[%clk 0:01:05]} 28. Rd6 {[%clk 0:01:30]}  Qxd6 {[%clk 0:01:00]} 29. Qxb2 {[%clk 0:01:31]}  Rd8 {[%clk 0:00:53]} 30. Qb5 {[%clk 0:01:31]}  Qd2 {[%clk 0:00:51]} 31. Rd1 {[%clk 0:01:30]}  Qxd1+ {[%clk 0:00:50]} 32. Bxd1 {[%clk 0:01:29]}  Rxd1+ {[%clk 0:00:50]} 33. Kh2 {[%clk 0:01:29]}  Ng4+ {[%clk 0:00:51]} 34. Kh3 {[%clk 0:01:26]}  Rh1# {[%clk 0:00:52]} 0-1


[Site "https://www.chess.com"]

[Event "Titled Tuesday Blitz December 20 Late 2022"]
[White "Gatterer, Florian"]
[Black "Bas Mas, Jose Joaquin"]
[WhiteFideId "811688"]
[BlackFideId "22219064"]
[WhiteElo "2218"]
[BlackElo "2233"]
[Result "1/2-1/2"]
[Round "10"]
[TimeControl "180+1"]
[Date "2022.12.21"]
[WhiteClock "0:02:03"]
[BlackClock "0:01:48"]

1. d4 {[%clk 0:03:00]}  Nf6 {[%clk 0:02:54]} 2. Nf3 {[%clk 0:03:01]}  d5 {[%clk 0:02:53]} 3. g3 {[%clk 0:02:59]}  e6 {[%clk 0:02:52]} 4. Bg2 {[%clk 0:02:59]}  Be7 {[%clk 0:02:52]} 5. O-O {[%clk 0:02:59]}  O-O {[%clk 0:02:53]} 6. c4 {[%clk 0:02:59]}  dxc4 {[%clk 0:02:54]} 7. Ne5 {[%clk 0:02:59]}  Nc6 {[%clk 0:02:52]} 8. Bxc6 {[%clk 0:02:58]}  bxc6 {[%clk 0:02:52]} 9. Nxc6 {[%clk 0:02:58]}  Qe8 {[%clk 0:02:53]} 10. Nxe7+ {[%clk 0:02:55]}  Qxe7 {[%clk 0:02:53]} 11. Qa4 {[%clk 0:02:54]}  e5 {[%clk 0:02:49]} 12. dxe5 {[%clk 0:02:46]}  Qxe5 {[%clk 0:02:46]} 13. Bf4 {[%clk 0:02:44]}  Qxe2 {[%clk 0:02:33]} 14. Nc3 {[%clk 0:02:39]}  Qf3 {[%clk 0:02:27]} 15. Qd1 {[%clk 0:02:29]}  Qc6 {[%clk 0:02:22]} 16. f3 {[%clk 0:02:20]}  Bf5 {[%clk 0:02:15]} 17. Qd2 {[%clk 0:02:06]}  Rad8 {[%clk 0:02:06]} 18. Qf2 {[%clk 0:02:05]}  Qb6 {[%clk 0:01:48]} 19. Be3 {[%clk 0:02:03]} 1/2-1/2


[Site "https://www.chess.com"]

[Event "Titled Tuesday Blitz December 20 Late 2022"]
[White "Gerbelli Neto, Eduardo"]
[Black "Gasparyan, David"]
[WhiteFideId "2103281"]
[BlackFideId "13311980"]
[WhiteElo "2178"]
[BlackElo "2446"]
[Result "1/2-1/2"]
[Round "10"]
[TimeControl "180+1"]
[Date "2022.12.21"]
[WhiteClock "0:00:09"]
[BlackClock "0:00:09"]

1. e4 {[%clk 0:03:00]}  c5 {[%clk 0:03:00]} 2. Nc3 {[%clk 0:03:00]}  g6 {[%clk 0:02:58]} 3. f4 {[%clk 0:03:01]}  Bg7 {[%clk 0:02:57]} 4. Nf3 {[%clk 0:03:01]}  Nc6 {[%clk 0:02:56]} 5. Bc4 {[%clk 0:03:01]}  e6 {[%clk 0:02:55]} 6. f5 {[%clk 0:03:01]}  Nd4 {[%clk 0:02:52]} 7. fxe6 {[%clk 0:02:51]}  dxe6 {[%clk 0:02:48]} 8. d3 {[%clk 0:02:51]}  Ne7 {[%clk 0:02:47]} 9. O-O {[%clk 0:02:47]}  Nxf3+ {[%clk 0:02:47]} 10. Qxf3 {[%clk 0:02:47]}  O-O {[%clk 0:02:46]} 11. Bg5 {[%clk 0:02:41]}  Qd4+ {[%clk 0:02:43]} 12. Be3 {[%clk 0:02:40]}  Qe5 {[%clk 0:02:43]} 13. Qf2 {[%clk 0:02:30]}  b6 {[%clk 0:02:40]} 14. Bf4 {[%clk 0:02:30]}  Qd4 {[%clk 0:02:40]} 15. Be3 {[%clk 0:02:31]}  Qd6 {[%clk 0:02:35]} 16. Bf4 {[%clk 0:02:23]}  Qc6 {[%clk 0:02:28]} 17. Qh4 {[%clk 0:02:17]}  f6 {[%clk 0:02:18]} 18. Qg3 {[%clk 0:02:01]}  Kh8 {[%clk 0:02:15]} 19. Bd6 {[%clk 0:01:50]}  Re8 {[%clk 0:01:44]} 20. Bb5 {[%clk 0:01:50]}  Qb7 {[%clk 0:01:41]} 21. Bxe8 {[%clk 0:01:48]}  e5 {[%clk 0:01:38]} 22. Bxe7 {[%clk 0:01:44]}  Qxe7 {[%clk 0:01:39]} 23. Bc6 {[%clk 0:01:45]}  Rb8 {[%clk 0:01:39]} 24. Nd5 {[%clk 0:01:44]}  Qd6 {[%clk 0:01:39]} 25. Bb5 {[%clk 0:01:43]}  a6 {[%clk 0:01:38]} 26. Bc4 {[%clk 0:01:43]}  b5 {[%clk 0:01:39]} 27. Bb3 {[%clk 0:01:43]}  c4 {[%clk 0:01:36]} 28. dxc4 {[%clk 0:01:40]}  bxc4 {[%clk 0:01:36]} 29. Bxc4 {[%clk 0:01:35]}  Qc5+ {[%clk 0:01:36]} 30. Ne3 {[%clk 0:01:36]}  Bh6 {[%clk 0:01:36]} 31. Rae1 {[%clk 0:01:18]}  Bxe3+ {[%clk 0:01:35]} 32. Qxe3 {[%clk 0:01:19]}  Qxc4 {[%clk 0:01:35]} 33. Rxf6 {[%clk 0:01:17]}  Be6 {[%clk 0:01:32]} 34. b3 {[%clk 0:01:15]}  Qc8 {[%clk 0:01:30]} 35. Qg5 {[%clk 0:01:07]}  Rb5 {[%clk 0:01:20]} 36. c4 {[%clk 0:01:06]}  Qc5+ {[%clk 0:01:14]} 37. Kh1 {[%clk 0:01:03]}  Rb6 {[%clk 0:01:14]} 38. Ref1 {[%clk 0:00:58]}  Kg7 {[%clk 0:01:12]} 39. Rf8 {[%clk 0:00:49]}  Bg8 {[%clk 0:01:05]} 40. Qd8 {[%clk 0:00:41]}  Be6 {[%clk 0:00:30]} 41. Qf6+ {[%clk 0:00:41]}  Kh6 {[%clk 0:00:31]} 42. Re8 {[%clk 0:00:20]}  Bg4 {[%clk 0:00:18]} 43. Qh4+ {[%clk 0:00:20]}  Bh5 {[%clk 0:00:18]} 44. g4 {[%clk 0:00:17]}  Qc6 {[%clk 0:00:16]} 45. g5+ {[%clk 0:00:11]}  Kg7 {[%clk 0:00:15]} 46. Rff8 {[%clk 0:00:11]}  Rb7 {[%clk 0:00:12]} 47. Qf2 {[%clk 0:00:11]}  Qxe4+ {[%clk 0:00:12]} 48. Kg1 {[%clk 0:00:11]}  Qg4+ {[%clk 0:00:09]} 49. Kf1 {[%clk 0:00:09]}  Qd1+ {[%clk 0:00:09]} 50. Kg2 {[%clk 0:00:09]}  Qg4+ {[%clk 0:00:09]} 51. Kf1 {[%clk 0:00:08]}  Qd1+ {[%clk 0:00:09]} 52. Kg2 {[%clk 0:00:08]}  Qg4+ {[%clk 0:00:09]} 53. Kf1 {[%clk 0:00:09]} 1/2-1/2


[Site "https://www.chess.com"]

[Event "Titled Tuesday Blitz December 20 Late 2022"]
[White "Goltsev, Dmitry"]
[Black "Tari, Aryan"]
[WhiteFideId "24176710"]
[BlackFideId "1510045"]
[WhiteElo "2327"]
[BlackElo "2620"]
[Result "0-1"]
[Round "10"]
[TimeControl "180+1"]
[Date "2022.12.20"]
[WhiteClock "0:00:19"]
[BlackClock "0:00:14"]

1. e4 {[%clk 0:03:00]}  c6 {[%clk 0:02:58]} 2. d4 {[%clk 0:02:59]}  d5 {[%clk 0:02:59]} 3. Nc3 {[%clk 0:03:00]}  dxe4 {[%clk 0:02:59]} 4. Nxe4 {[%clk 0:03:01]}  Nf6 {[%clk 0:03:00]} 5. Ng3 {[%clk 0:03:00]}  h5 {[%clk 0:03:00]} 6. h4 {[%clk 0:02:58]}  g6 {[%clk 0:02:55]} 7. Nf3 {[%clk 0:02:57]}  Bg7 {[%clk 0:02:55]} 8. Ne5 {[%clk 0:02:56]}  O-O {[%clk 0:02:53]} 9. Be2 {[%clk 0:02:55]}  c5 {[%clk 0:02:49]} 10. dxc5 {[%clk 0:02:54]}  Qa5+ {[%clk 0:02:48]} 11. c3 {[%clk 0:02:53]}  Qxc5 {[%clk 0:02:45]} 12. Nd3 {[%clk 0:02:51]}  Qa5 {[%clk 0:02:35]} 13. Bg5 {[%clk 0:02:51]}  Nc6 {[%clk 0:02:30]} 14. Qd2 {[%clk 0:02:50]}  Rd8 {[%clk 0:02:29]} 15. Bh6 {[%clk 0:02:48]}  Ne5 {[%clk 0:02:19]} 16. Bxg7 {[%clk 0:02:45]}  Kxg7 {[%clk 0:02:19]} 17. O-O {[%clk 0:02:40]}  Bg4 {[%clk 0:02:08]} 18. f3 {[%clk 0:02:32]}  Qc7 {[%clk 0:01:45]} 19. fxg4 {[%clk 0:02:13]}  Nxd3 {[%clk 0:01:46]} 20. Nxh5+ {[%clk 0:02:06]}  gxh5 {[%clk 0:01:38]} 21. Bxd3 {[%clk 0:02:06]}  Qc5+ {[%clk 0:01:29]} 22. Kh1 {[%clk 0:02:02]}  hxg4 {[%clk 0:01:26]} 23. Rad1 {[%clk 0:01:52]}  Rd5 {[%clk 0:01:17]} 24. Qf4 {[%clk 0:01:47]}  Qd6 {[%clk 0:01:02]} 25. Qxd6 {[%clk 0:01:47]}  Rxd6 {[%clk 0:01:03]} 26. Be2 {[%clk 0:01:47]}  Rxd1 {[%clk 0:00:56]} 27. Rxd1 {[%clk 0:01:48]}  Ne4 {[%clk 0:00:57]} 28. Kg1 {[%clk 0:01:46]}  f5 {[%clk 0:00:55]} 29. Rd7 {[%clk 0:01:29]}  Kf6 {[%clk 0:00:55]} 30. Bd3 {[%clk 0:01:29]}  Nd6 {[%clk 0:00:49]} 31. g3 {[%clk 0:01:29]}  Rc8 {[%clk 0:00:48]} 32. Bc2 {[%clk 0:00:58]}  Ke6 {[%clk 0:00:48]} 33. Ba4 {[%clk 0:00:58]}  b5 {[%clk 0:00:48]} 34. Rxa7 {[%clk 0:00:58]}  bxa4 {[%clk 0:00:48]} 35. Rxa4 {[%clk 0:00:59]}  Ne4 {[%clk 0:00:48]} 36. Kg2 {[%clk 0:00:58]}  Rb8 {[%clk 0:00:48]} 37. Rb4 {[%clk 0:00:56]}  Rd8 {[%clk 0:00:46]} 38. Rd4 {[%clk 0:00:55]}  Rxd4 {[%clk 0:00:31]} 39. cxd4 {[%clk 0:00:56]}  Kd5 {[%clk 0:00:31]} 40. h5 {[%clk 0:00:54]}  Kxd4 {[%clk 0:00:23]} 41. h6 {[%clk 0:00:54]}  Ng5 {[%clk 0:00:23]} 42. a4 {[%clk 0:00:54]}  e5 {[%clk 0:00:20]} 43. a5 {[%clk 0:00:53]}  Kc5 {[%clk 0:00:21]} 44. b4+ {[%clk 0:00:47]}  Kb5 {[%clk 0:00:21]} 45. Kf2 {[%clk 0:00:47]}  f4 {[%clk 0:00:21]} 46. Kg2 {[%clk 0:00:48]}  f3+ {[%clk 0:00:21]} 47. Kf2 {[%clk 0:00:48]}  e4 {[%clk 0:00:16]} 48. Ke3 {[%clk 0:00:48]}  Nh7 {[%clk 0:00:12]} 49. Kf2 {[%clk 0:00:47]}  Nf6 {[%clk 0:00:12]} 50. Ke3 {[%clk 0:00:38]}  Nd5+ {[%clk 0:00:13]} 51. Kxe4 {[%clk 0:00:19]}  f2 {[%clk 0:00:13]} 52. h7 {[%clk 0:00:19]}  f1=Q {[%clk 0:00:14]} 53. h8=Q {[%clk 0:00:19]}  Qf3+ {[%clk 0:00:14]} 0-1


[Site "https://www.chess.com"]